[Event "Chessable English Open-ch 2022"]
[Site "Kenilwoth"]
[Date "2022.05.20"]
[Round "3.13"]
[White "Thompson, Ian D"]
[Black "Pert, Max"]
[Result "1/2-1/2"]
[ECO "A29"]
[WhiteElo "2074"]
[BlackElo "1634"]
[Annotator "TA"]
[PlyCount "135"]
[EventDate "2022.05.18"]
[EventType "swiss"]
[EventCountry "ENG"]
[SourceTitle "playchess.com"]
[Source "ChessBase"]
[SourceQuality "1"]
[TimeControl "5400+30"]

{[%evp 13,135,26,27,17,32,32,33,13,28,10,53,7,35,12,22,25,44,38,30,30,33,27,73,55,83,52,58,68,122,136,122,73,175,59,81,77,132,83,62,45,66,0,0,0,22,8,7,10,233,5,14,0,0,0,0,-24,200,198,201,208,210,202,214,214,193,0,42,23,28,28,20,26,23,10,23,0,0,0,0,-8,0,2,45,37,435,76,80,75,58,33,395,10,10,10,10,2,3,0,0,0,0,7,8,0,8,0,0,0,10,7,9,0,10,6,7,-11,14,0,5,0,0,0,0,22]} 1. c4 {[%emt 0:00:02]} e5 {[%emt 0:00:08]} 2. Nc3 {[%emt 0:00:10]} Nc6 {[%emt 0:00:30]} 3. g3 {[%emt 0:00:17]} Bc5 {[%emt 0:00:37]} 4. Bg2 {[%emt 0:00:23]} d6 {[%emt 0:00:36]} 5. e3 {[%emt 0:00:49]} a6 {[%emt 0:00:51]} 6. Nf3 {[%emt 0:01:45]} Nf6 {[%emt 0:01:36][%cal Bg8f6,Bf6d7,Bd7b6][%mdl 32]} 7. O-O {[%emt 0:00:46]} O-O {[%emt 0:00:17]} 8. d4 {[%emt 0:02:55] A29: English Opening: Four Knights Variation with 4 g3.} Ba7 {[%emt 0:01:00]} 9. h3 {[%emt 0:11:54]} h6 {[%emt 0:09:39]} 10. a3 {[%emt 0:07:47] White is slightly better.} Bf5 {[%emt 0:02:14]} 11. b4 {[%emt 0:02:46] [#]} Nd7 $146 {[%emt 0:05:02]} ({Predecessor:} 11... Bh7 12. Bb2 exd4 13. exd4 Ne4 14. Nxe4 Bxe4 15. d5 Ne7 16. Nh4 Bxg2 17. Kxg2 Qd7 {0-1 (24) Roque Sola,G (2046)-Aghasiyev,K (2441) Chess.com INT 2020}) 12. Bb2 {[%emt 0:02:18]} (12. Ne2 $14 {deserves consideration.}) 12... Nb6 {[%emt 0:04:46]} 13. d5 {[%emt 0:07:33]} Ne7 {[%emt 0:02:45]} (13... Nxc4 $2 14. dxc6 bxc6 15. Qe2 $18) 14. Qe2 {[%emt 0:00:45]} Qd7 {[%emt 0:02:49]} 15. Kh2 {[%emt 0:01:07]} Na4 {[%emt 0:00:48]} 16. Nxa4 {[%emt 0:02:49]} Qxa4 {[%emt 0:00:09]} 17. Rac1 {[%emt 0:07:15]} Qd7 {[%emt 0:02:45]} (17... Be4 $11) 18. Rfd1 {[%emt 0:01:04]} Rac8 {[%emt 0:02:38]} 19. Nd2 {[%emt 0:11:42]} Bg6 {[%emt 0:04:27]} 20. c5 {[%emt 0:02:36]} Qb5 {[%emt 0:08:28]} (20... f6 $14) 21. Qxb5 $16 {[%emt 0:01:00]} axb5 {[%emt 0:00:10]} 22. Nb3 {[%emt 0:00:39]} (22. Ne4 $142) 22... Rfd8 {[%emt 0:01:40]} (22... f6 $16) 23. e4 {[%emt 0:04:53]} (23. Na5 $1 $18 {[%cal Ra5b7]}) 23... f6 {[%emt 0:06:32]} 24. f4 {[%emt 0:03:45]} Bf7 {[%emt 0:03:29]} ({Black should try} 24... Rb8) 25. fxe5 {[%emt 0:00:25]} (25. Na5 $142 $1 {[%cal Ra5b7]}) 25... dxe5 {[%emt 0:01:17]} 26. Na5 {[%emt 0:03:18]} Rb8 {[%emt 0:02:48]} 27. d6 {[%emt 0:04:49] White is more active.} (27. Bf3 $14) 27... cxd6 $11 {[%emt 0:00:32]} 28. cxd6 {[%emt 0:00:11]} Nc8 {[%emt 0:01:50]} (28... Nc6 $5) 29. d7 $36 {[%emt 0:00:14][%mdl 2048] White has good play.} Nb6 $1 {[%emt 0:00:28]} 30. Rc7 {[%emt 0:00:15]} Nc4 $2 {[%emt 0:00:31]} (30... Be6 $11) 31. Nxb7 $2 {[%emt 0:03:50]} (31. Bc3 $1 $18) 31... Bb6 $1 {[%emt 0:04:33]} 32. Rxc4 {[%emt 0:00:23]} Bxc4 {[%emt 0:00:37]} 33. Nxd8 {[%emt 0:00:07]} Rxd8 {[%emt 0:00:07]} 34. Bf3 {[%emt 0:01:51]} Be6 $2 {[%emt 0:00:44]} (34... Kf7 $11 {and Black stays safe.}) 35. Rd6 $1 $18 {[%emt 0:00:59][%csl LRb6,LRe6]} Rxd7 {[%emt 0:00:49]} 36. Rxe6 {[%emt 0:02:40]} Rd2+ {[%emt 0:00:16]} 37. Bg2 {[%emt 0:01:50]} Bf2 {[%emt 0:00:24] [#]} 38. Bc3 {[%emt 0:02:27]} Rc2 {[%emt 0:01:21]} 39. Bxe5 {[%emt 0:02:28]} fxe5 {[%emt 0:00:26]} (39... Kf7 $5 {[%cal Rf7e6]} 40. Ra6 fxe5 $11) 40. Rxe5 {[%emt 0:00:39][%mdl 4096] Endgame KRB-KRB} Rc3 {[%emt 0:00:35][%csl LRa3,LRg3]} 41. Rxb5 {[%emt 0:00:15]} Bxg3+ {[%emt 0:00:08]} 42. Kg1 {[%emt 0:00:07] Black must now prevent a4.} Rxa3 {[%emt 0:00:07]} 43. Rd5 {[%emt 0:02:48]} Re3 {[%emt 0:00:41]} 44. Rd1 {[%emt 0:01:37]} Rb3 {[%emt 0:00:32]} 45. Rd4 {[%emt 0:00:16]} Rb2 {[%emt 0:00:57] aiming for ...Bf2+.} 46. Rc4 {[%emt 0:01:47]} Be1 {[%emt 0:00:15]} 47. e5 {[%emt 0:01:03][%cal Be4e5,Be5e6][%mdl 32]} Re2 {[%emt 0:02:17]} 48. Bd5+ {[%emt 0:00:14]} Kh7 $2 {[%emt 0:00:48][%mdl 8192] [#]} (48... Kf8 $14) 49. Be4+ $2 {[%emt 0:00:34]} (49. Kf1 $1 $18 {[%cal Rf1e2] is the precise move to win.} Rxe5 50. Be4+ Kg8 51. Kxe1) 49... Kg8 $16 {[%emt 0:00:15]} 50. e6 {[%emt 0:01:13][%cal Rc4c8]} Kf8 {[%emt 0:00:36]} 51. b5 {[%emt 0:01:09]} Rb2 $2 {[%emt 0:00:45][%mdl 8192]} ({Better is} 51... Ba5 $14) 52. Bc6 $2 {[%emt 0:00:14]} (52. Rc7 $18 {e7+ would kill now.} Bh4 53. Bc6) 52... Ke7 $11 {[%emt 0:00:46] The position is equal.} 53. Bd7 {[%emt 0:00:19]} Bg3 {[%emt 0:00:56]} 54. Rc8 {[%emt 0:00:49]} Bh4 {[%emt 0:00:47]} 55. Kf1 {[%emt 0:00:26]} Rf2+ {[%emt 0:00:17]} 56. Kg1 {[%emt 0:00:09]} Rb2 {[%emt 0:00:06]} 57. Re8+ {[%emt 0:00:21]} Kd6 {[%emt 0:00:11]} 58. Rc8 {[%emt 0:00:26]} Ke7 {[%emt 0:00:09]} 59. Rc4 {[%emt 0:00:10]} Bf6 {[%emt 0:00:31]} 60. Kf1 {[%emt 0:00:16]} Be5 {[%emt 0:00:33]} 61. Rc8 {[%emt 0:01:15]} Bf6 {[%emt 0:00:24]} 62. Ke1 {[%emt 0:00:33]} Kd6 {[%emt 0:01:18]} 63. Rc6+ {[%emt 0:00:49]} Ke7 {[%emt 0:27:27]} 64. Kd1 {[%emt 0:00:15]} Kd8 {[%emt 0:00:00]} 65. Kc1 {[%emt 0:01:03]} Ke7 {[%emt 0:00:00]} 66. Rc8 {[%emt 0:00:07]} Rb3 {[%emt 0:00:00]} 67. Kc2 {[%emt 0:00:19]} Rxh3 {[%emt 0:00:00]} 68. Re8+ {[%emt 0:01:34] Weighted Error Value: White=0.46/Black=0.51} 1/2-1/2

[Event "Chessable English Open-ch 2022"]
[Site "Kenilwoth"]
[Date "2022.05.20"]
[Round "3.14"]
[White "Duncan, Patrick C M"]
[Black "Kumar, Soham"]
[Result "1/2-1/2"]
[ECO "A01"]
[WhiteElo "2013"]
[BlackElo "1678"]
[Annotator "TA"]
[PlyCount "36"]
[EventDate "2022.05.18"]
[EventType "swiss"]
[EventCountry "ENG"]
[SourceTitle "playchess.com"]
[Source "ChessBase"]
[SourceQuality "1"]
[TimeControl "5400+30"]

{[%evp 9,36,0,28,-24,70,41,39,26,50,27,42,27,68,16,52,26,101,3,28,0,0,-4,20,0,3,-85,-75,-97,23]} 1. b3 {[%emt 0:00:05]} e5 {[%emt 0:00:06][%cal Be7e5,Be5e4][%mdl 32]} 2. Bb2 {[%emt 0:00:05]} Nc6 {[%emt 0:00:08]} 3. e3 {[%emt 0:00:07]} Nf6 {[%emt 0:00:08]} 4. Nf3 {[%emt 0:00:19]} e4 {[%emt 0:00:10]} 5. Nd4 {[%emt 0:00:08]} Bc5 {[%emt 0:00:09]} 6. Nf5 {[%emt 0:05:12] [#] A01: Nimzowitsch-Larsen Opening.} (6. Nxc6 $142 dxc6 7. d4 exd3 8. Bxd3) 6... Rg8 $146 {[%emt 0:15:55]} ({Black should play} 6... g6 $11 7. Ng3 d5) ({Predecessor:} 6... O-O 7. c4 d5 8. cxd5 Nb4 9. Ng3 Nbxd5 10. Qc2 Qe7 11. Nc3 Nb4 12. Qb1 Re8 13. a3 {0-1 (33) Lenderman,A (2600)-Andreikin,D (2724) Chess.com INT 2022}) 7. d4 {[%emt 0:00:50]} exd3 {[%emt 0:04:14]} 8. Bxd3 {[%emt 0:00:27] White is slightly better.} d5 {[%emt 0:03:07]} 9. Nd2 {[%emt 0:04:51]} Bxf5 {[%emt 0:10:05]} 10. Bxf5 {[%emt 0:01:16]} d4 {[%emt 0:01:55]} 11. Qe2 {[%emt 0:11:46]} (11. Qf3 $14) 11... dxe3 {[%emt 0:07:04]} 12. fxe3 {[%emt 0:03:19] aiming for 0-0-0.} Qe7 {[%emt 0:05:02]} (12... g6 $11 {remains equal.} 13. Bh3 Qe7) 13. O-O-O {[%emt 0:15:18]} ({White should try} 13. Bxf6 $16 Qxf6 14. O-O) 13... Ba3 $11 {[%emt 0:01:23]} 14. Nc4 {[%emt 0:22:15]} Bxb2+ {[%emt 0:00:12]} 15. Kxb2 {[%emt 0:00:52]} g6 {[%emt 0:03:18]} 16. Bh3 {[%emt 0:01:02]} Kf8 {[%emt 0:01:41]} 17. Qe1 {[%emt 0:07:56]} (17. g4 $11 {keeps the balance.}) 17... Kg7 {[%emt 0:01:19]} 18. Qc3 {[%emt 0:00:23] [#]} Rgd8 {[%emt 0:03:24] Prevents Rd7.  Weighted Error Value: White=0.52/Black=0.28 (precise)} (18... Kh6 $1 $17 19. Qe1 Rad8) 1/2-1/2

[Event "Chessable English Open-ch 2022"]
[Site "Kenilwoth"]
[Date "2022.05.20"]
[Round "3.15"]
[White "Wells, Daniel J"]
[Black "Herring, Samuel"]
[Result "1/2-1/2"]
[ECO "B12"]
[WhiteElo "2020"]
[BlackElo "1900"]
[Annotator "TA"]
[PlyCount "63"]
[EventDate "2022.05.18"]
[EventType "swiss"]
[EventCountry "ENG"]
[SourceTitle "playchess.com"]
[Source "ChessBase"]
[SourceQuality "1"]
[TimeControl "5400+30"]

{[%evp 9,63,16,6,13,8,13,6,8,13,11,19,-25,-25,-21,-27,-27,0,-19,0,-8,0,0,0,0,0,-31,29,26,22,0,7,-21,0,0,0,0,0,0,22,16,14,10,49,0,19,6,15,0,14,13,968,0,0,0,0,0]} 1. e4 {[%emt 0:00:04]} c6 {[%emt 0:00:04]} 2. d4 {[%emt 0:00:10]} d5 {[%emt 0:00:04]} 3. e5 {[%emt 0:00:08]} c5 {[%emt 0:00:04]} 4. Nf3 {[%emt 0:01:24]} cxd4 {[%emt 0:00:33]} 5. Nxd4 {[%emt 0:01:22]} Nc6 {[%emt 0:01:01]} 6. c4 {[%emt 0:06:32] B12: Caro-Kann: Advance Variation.} e6 {[%emt 0:07:28]} 7. Nc3 {[%emt 0:09:38] Black should prevent cxd5.} Bb4 {[%emt 0:02:34]} 8. Nxc6 {[%emt 0:43:25]} bxc6 {[%emt 0:01:44]} 9. Qa4 {[%emt 0:01:13]} a5 {[%emt 0:02:50]} 10. a3 {[%emt 0:01:11]} (10. Qxc6+ Bd7 11. Qb7 d4) (10. cxd5 Qxd5 11. Qxb4 (11. Be3 Ne7) 11... axb4 12. Nxd5 exd5 13. Be3) ({Reject} 10. Qxc6+ Bd7 11. Qb7 d4 $15) 10... Bxc3+ {[%emt 0:02:16]} 11. bxc3 {[%emt 0:00:07]} Ne7 {[%emt 0:11:24]} 12. Be3 {[%emt 0:05:25][%cal Bc1e3,Be3c5,Bc5d4][%mdl 32]} O-O {[%emt 0:04:12]} (12... Qc7 $5 {[%cal Rc7e5]}) 13. Bd3 {[%emt 0:01:35]} Ba6 {[%emt 0:03:02]} (13... Qc7) 14. O-O {[%emt 0:00:40] [#]} Bxc4 $146 {[%emt 0:06:22]} ({Predecessor:} 14... dxc4 15. Bxc4 Bxc4 16. Qxc4 Qd5 17. Qxd5 Nxd5 18. Bc5 Rfd8 19. c4 Nc3 20. Bd6 f5 {1-0 (42) Sanchez,J (2533)-Valsecchi,A (2422) Milan 2012}) 15. Bxc4 {[%emt 0:01:04]} dxc4 {[%emt 0:00:07]} 16. Bc5 {[%emt 0:01:32]} Re8 {[%emt 0:03:24]} 17. Rfd1 {[%emt 0:01:37] Against Qd5} Nd5 {[%emt 0:01:52]} (17... Qb8) (17... Qb8 $15) 18. Qxc4 $11 {[%emt 0:00:24]} Qg5 {[%emt 0:06:57]} (18... Qb8) 19. Re1 {[%emt 0:05:09]} Qd2 {[%emt 0:17:47]} 20. Bd4 {[%emt 0:03:28]} Rec8 {[%emt 0:05:45][%cal Oc6c5]} 21. Rad1 {[%emt 0:03:40]} Qb2 {[%emt 0:05:53]} 22. Qc5 {[%emt 0:01:23]} Nf4 {[%emt 0:07:07]} 23. g3 {[%emt 0:05:36]} Ne2+ {[%emt 0:02:36]} 24. Kg2 {[%emt 0:00:08] [#] Strongly threatening Be3.} Nxd4 {[%emt 0:00:42]} 25. Rxd4 {[%emt 0:00:26]} Qb5 {[%emt 0:00:42]} 26. Qe7 {[%emt 0:00:43]} (26. Rc4 $1 $14 {was preferrable.}) 26... c5 {[%emt 0:01:01]} 27. Rd7 {[%emt 0:00:04]} Rf8 {[%emt 0:00:22]} 28. Red1 {[%emt 0:00:28]} Qc6+ {[%emt 0:00:29]} (28... Qc4 $2 29. Rd8 Qe4+ 30. Kg1 Qe1+ 31. Rxe1 $18) 29. Kg1 {[%emt 0:00:17] R1d6 is the strong threat.} Rab8 $2 {[%emt 0:00:40][%mdl 8192] [#]} (29... h5 $11) 30. Rc7 $2 {[%emt 0:02:51]} ({White has to play} 30. Rd8 $1 $18 {[%csl Gd8][%cal Re7f8]} Qe8 31. Rxe8 Rfxe8 32. Qxc5) 30... Qf3 {[%emt 0:00:57]} 31. Qd6 {[%emt 0:00:49] Active counter play!} g6 {[%emt 0:02:15]} 32. Qd3 {[%emt 0:03:57] Weighted Error Value: White=0.26 (precise) /Black=0.14 (very precise)} 1/2-1/2

[Event "Chessable English Open-ch 2022"]
[Site "Kenilwoth"]
[Date "2022.05.20"]
[Round "3.16"]
[White "Larkin, Benjamin"]
[Black "Zheng, Harry Z"]
[Result "0-1"]
[ECO "E05"]
[WhiteElo "1853"]
[BlackElo "1915"]
[Annotator "TA"]
[PlyCount "66"]
[EventDate "2022.05.18"]
[EventType "swiss"]
[EventCountry "ENG"]
[SourceTitle "playchess.com"]
[Source "ChessBase"]
[SourceQuality "1"]
[TimeControl "5400+30"]

{[%evp 11,66,15,14,-23,-8,-3,4,12,47,15,85,48,70,50,68,16,16,25,32,0,0,-217,-217,-215,-222,-221,-209,-239,-19,-14,-22,-171,-163,-168,-168,-162,-169,-171,-143,-164,-156,-143,-143,-144,-149,-143,-146,-148,-148,-464,-426,-760,-741,-741,-735,-726,-726]} 1. Nf3 {[%emt 0:00:16]} Nf6 {[%emt 0:00:09]} 2. c4 {[%emt 0:00:03]} e6 {[%emt 0:00:13]} 3. g3 {[%emt 0:00:04]} d5 {[%emt 0:00:16]} 4. Bg2 {[%emt 0:00:04]} Be7 {[%emt 0:00:09]} 5. O-O {[%emt 0:00:07]} O-O {[%emt 0:00:08]} 6. d4 {[%emt 0:00:04]} dxc4 {[%emt 0:00:12]} 7. a4 {[%emt 0:00:06] E05: Open Catalan: 5 Nf3 Be7.} (7. Ne5) 7... c5 {[%emt 0:04:24]} (7... Nc6) 8. dxc5 {[%emt 0:05:20]} Qxd1 {[%emt 0:02:47]} 9. Rxd1 {[%emt 0:00:01] The position is equal.} Bxc5 {[%emt 0:00:18]} 10. Ne5 {[%emt 0:00:33] [#] Inhibits Nc6.} Na6 $146 {[%emt 0:14:55]} (10... Nc6 11. Nxc4 e5) (10... Nc6 $11 {keeps the balance.} 11. Nxc4 e5) ({Predecessor:} 10... Nc6 11. Nxc6 bxc6 12. Bxc6 Rb8 13. Nc3 a6 14. a5 e5 15. Bg5 Rxb2 16. Na4 Bxf2+ 17. Kxf2 {1-0 (26) Heinert,E (2208)-Schwarzenberg,J (2135) Muenster 2011}) 11. Na3 {[%emt 0:01:24]} (11. Nxc4 Nd5 12. Nc3 (12. Bxd5 exd5 13. Ne3 d4)) 11... Nb4 {[%emt 0:06:50][%cal Ba6b4,Bb4c2,Bc2d4][%mdl 32]} 12. Naxc4 {[%emt 0:03:41]} Nfd5 {[%emt 0:01:19][%cal Bf6d5,Bd5c3,Bc3d1][%mdl 32]} 13. b3 {[%emt 0:11:33]} ({Better is} 13. a5 $14) 13... Nc2 $11 {[%emt 0:02:35]} 14. Ra2 {[%emt 0:07:06]} Nd4 {[%emt 0:22:06]} (14... Nc3 15. Rxc2 Nxd1 16. Nd3) (14... Ndb4 15. Rb2 f6) (14... Nc3 15. Rxc2 Nxd1 16. Nd3 $16) 15. e3 {[%emt 0:04:55]} (15. Rb2) 15... Nxb3 {[%emt 0:02:14]} 16. Ba3 $2 {[%emt 0:09:33]} (16. Bb2) (16. Bb2 $11 {and White has nothing to worry.}) 16... Nc3 $1 $19 {[%emt 0:07:08][%csl LRa2,LRa4,LRd1]} 17. Rb2 {[%emt 0:02:32][%cal Ob2b3]} Nxd1 {[%emt 0:00:22]} 18. Rxb3 {[%emt 0:00:06]} Bxa3 {[%emt 0:00:34]} 19. Rxa3 {[%emt 0:02:26]} Rd8 {[%emt 0:01:08]} (19... f6 20. Nd3 Rf7) (19... f6 $1 $19 {[%cal Rf6e5]} 20. Nd3 Rf7) 20. Bf3 $1 $11 {[%emt 0:00:48]} Rb8 {[%emt 0:02:59]} (20... f6 $5 21. Nd3 e5 $1 22. Bxd1 Bf5 $11) 21. Nd3 {[%emt 0:10:16]} (21. a5) (21. a5 $11) 21... b5 $19 {[%emt 0:02:14]} 22. axb5 {[%emt 0:02:00] [#]} Rxb5 $1 {[%emt 0:04:46][%cal Oc8b7] ...Bb7! is the strong threat.} 23. Bxd1 {[%emt 0:00:06]} Rb1 {[%emt 0:00:18]} 24. Ncb2 {[%emt 0:03:20]} Bb7 $36 {[%emt 0:03:15][%mdl 2048] White is under strong pressure.} 25. Kf1 {[%emt 0:03:34] [#]} e5 $1 {[%emt 0:01:44] Strongly threatening ...Bf3.} 26. Ke2 {[%emt 0:07:15] Prevents Bf3+. aiming for Bc2.} (26. Rxa7 Bf3 27. Ne1 Bxd1 28. Nxd1 Rbxd1) ({But not} 26. Rxa7 $2 Bf3 27. Ne1 Bxd1 28. Nxd1 Rbxd1 $19) 26... e4 {[%emt 0:00:35] Black is more active.} 27. Bc2 {[%emt 0:00:01]} exd3+ {[%emt 0:00:14]} 28. Nxd3 {[%emt 0:00:02]} Rb6 {[%emt 0:00:12]} 29. Rxa7 {[%emt 0:00:21]} Ba6 {[%emt 0:05:51]} 30. e4 $2 {[%emt 0:03:15][%mdl 8192] White does not recover from this.} (30. Ke1 $17 {is a better chance.}) 30... g6 {[%emt 0:00:48] Black is clearly winning.} ({Wrong is} 30... Rbd6 $2 31. Rxa6 Rxa6 32. Bb3 $19) 31. Rc7 {[%emt 0:00:53]} (31. Rxa6 $142 Rxa6 32. Bb3) 31... Rb2 {[%emt 0:02:18] White must now prevent ...Bxd3+.} ({Weaker is} 31... Rbd6 32. Rc3 $17) 32. Ke3 {[%emt 0:01:55]} Bxd3 {[%emt 0:00:50]} 33. Bxd3 {[%emt 0:00:16]} Rb3 {[%emt 0:13:09] Weighted Error Value: White=0.62/Black=0.25 (precise)} 0-1

[Event "Chessable English Open-ch 2022"]
[Site "Kenilwoth"]
[Date "2022.05.20"]
[Round "4.1"]
[White "Hebden, Mark L"]
[Black "Derakhshani, Borna"]
[Result "1-0"]
[ECO "D12"]
[WhiteElo "2452"]
[BlackElo "2388"]
[Annotator "TA"]
[PlyCount "53"]
[EventDate "2022.05.18"]
[EventType "swiss"]
[EventCountry "ENG"]
[SourceTitle "playchess.com"]
[Source "ChessBase"]
[SourceQuality "1"]
[TimeControl "5400+30"]

{[%evp 18,53,18,13,14,14,13,7,12,6,19,3,54,45,99,96,130,118,117,126,192,120,343,338,278,139,437,418,1691,1642,29992,29993,29994,29995,29997,29997,29998,29999]} 1. d4 {[%emt 0:00:05]} d5 {[%emt 0:02:49]} 2. c4 {[%emt 0:00:44]} c6 {[%emt 0:00:04]} 3. Nf3 {[%emt 0:00:15]} Nf6 {[%emt 0:00:07]} 4. e3 {[%emt 0:00:22]} Bf5 {[%emt 0:00:09]} 5. cxd5 {[%emt 0:01:17]} cxd5 {[%emt 0:00:06]} 6. Qb3 {[%emt 0:00:06]} Qc7 {[%emt 0:00:05]} 7. Bd2 {[%emt 0:00:06]} e6 {[%emt 0:00:22]} 8. Bb5+ {[%emt 0:00:13]} Nc6 {[%emt 0:00:17]} 9. O-O $1 {[%emt 0:00:36] The main line 9.0-0 scores better than 9.Bb4.} Bd6 {[%emt 0:00:26]} 10. Bb4 {[%emt 0:00:35]} O-O {[%emt 0:01:05] D12: Slav Defence: 3 Nf3 Nf6 4 e3 Bf5.} 11. Bxc6 {[%emt 0:00:18]} Bxb4 {[%emt 0:08:49] was the old line (11...bxc6).} 12. Qxb4 {[%emt 0:02:02]} Qxc6 {[%emt 0:00:05] The position is equal.} 13. Ne5 {[%emt 0:01:08]} Qa6 {[%emt 0:00:30]} 14. Nc3 {[%emt 0:01:30]} Rac8 {[%emt 0:02:53]} (14... Ng4 $11) 15. Rfc1 {[%emt 0:05:13] [#]} Rc7 $146 {[%emt 0:07:48] [#]} (15... Ng4 $14) ({Predecessor:} 15... Rfe8 16. a4 Qb6 17. Qxb6 axb6 18. Nb5 Rxc1+ 19. Rxc1 Re7 20. Rc8+ Ne8 21. Nd6 Kf8 22. Nd7+ {1-0 (22) Ma,Z (2336)-Zhang,Z (2118) Beijing 2012}) 16. Nb5 $1 $16 {[%emt 0:05:48]} Rxc1+ {[%emt 0:01:28]} 17. Rxc1 {[%emt 0:00:07] Black must now prevent a4.} Qxa2 {[%emt 0:05:11]} 18. Nd6 {[%emt 0:03:51] White is more active.} b6 {[%emt 0:09:33]} (18... Qa6 $16) 19. Nc8 $40 {[%emt 0:03:51][%mdl 128] White wants a kill. Pair of Knights!} ({Better is} 19. Ndxf7 $1 $18 h6 20. h3) 19... g6 $2 {[%emt 0:04:23]} (19... g5 $16) 20. h3 $18 {[%emt 0:02:49]} Kg7 {[%emt 0:02:15]} 21. Kh2 {[%emt 0:06:38]} (21. Nd6 $18 {Hoping for Ndxf7.} Bc2 22. Kh2 (22. Ndxf7 Rxf7 23. Nxf7 Kxf7 $16)) 21... Qa6 $2 {[%emt 0:13:33][%mdl 8192]} (21... g5 $16) 22. Qe7 {[%emt 0:06:08] Nd6 is the strong threat.} Qe2 {[%emt 0:06:49]} (22... Ng8 $142 23. Qc7 (23. Qxa7 Qxa7 24. Nxa7 g5 $16) 23... g5) 23. Nd6 {[%emt 0:02:44] White wants to mate with Rc8.} Bxh3 {[%emt 0:00:13]} 24. Rc8 {[%emt 0:02:08][%mdl 64] [#] Deflection. White mates.} ({Weaker is} 24. Kxh3 Qh5+ 25. Kg3 g5 $16) 24... Rxc8 {[%emt 0:07:43]} 25. Qxf7+ {[%emt 0:00:16]} Kh8 {[%emt 0:00:10]} 26. Qxf6+ {[%emt 0:00:36]} Kg8 {[%emt 0:00:04]} 27. Nef7 {[%emt 0:01:24] Black did not feel at home in the position after the opening.  Weighted Error Value: White=0.18 (very precise) /Black=0.75} 1-0